{"text_format":"1","workbook":"xlsx","n_sheets":1,"sheets":["Приложение № 2.26"],"not_rendered":{"charts":0,"images":0,"macros":0,"external_links":0,"defined_names":0,"comments":0,"pivot_tables":0},"unopened":[],"bounds":{"document_bytes":16777216,"sheet_cells":100000,"rows_first":2000,"rows_last":500,"rows_between":2000,"halvings":0,"cell_chars":16384,"cell_head_chars":4096},"cells_cut":0,"cells_raw":0,"read":"whole","date_system":"1900"}

{"sheet":"Приложение № 2.26","index":0,"n_rows":33,"n_cols":6,"rows_kept":33,"cut":false,"hidden":false,"merged":[[32,0,32,5],[26,0,26,5],[0,2,0,5],[1,2,1,5],[2,2,2,5],[4,0,4,5],[7,0,7,5],[22,0,22,5],[31,0,31,5]]}
[null,null,"Приложение № 2.26"]
[null,null,"к Закону Приднестровской Молдавской Республики"]
[null,null,"\"О республиканском бюджете на 2026 год\""]
[]
["Смета расходов на финансирование государственного заказа по обеспечению создания, сопровождения и развития комплекса информационных систем,  используемых для реализации государственных функций и предоставления государственных услуг в электронной форме \"Элекронное Правительство\" на 2026 год"]
[]
["№ п/п","Наименование","Стоимость сопровождения ГИС, руб.","Стоимость создания ГИС, руб.","Стоимость развития ГИС, руб.","Стои- мость ГИС, руб."]
["Министерство цифрового развития, связи и массовых коммуникаций                                                                                                    Приднестровской Молдавской Республики"]
["1.","Государственная информационная система \"Корневой удостоверяющий центр Приднестровской Молдавской Республики\"",81831,null,null,{"$f":"SUM(C9:E9)","v":81831}]
["2.","Государственная информационная система  \"Сеть передачи данных межведомственного электронного взаимодействия Приднестровской Молдавской Республики\"",402695,null,null,402695]
["3.","Государственная информационная система  \"Система межведомственного обмена данными\"",344394,null,null,344394]
["4.","Государственная информационная система  \"Межведомственный электронный документооборот\"",733032,211558,29288,973878]
["5.","Государственная информационная система  \"Портал государственных услуг Приднестровской Молдавской Республики\"",371940,null,null,371940]
["6.","Государственная информационная система  \"Единый реестр государственных услуг\"",86663,null,null,86663]
["7.","Государственная информационная система \"Реестр документов разрешительного характера\"",93222,null,null,93222]
["8.","Государственная информационная система \"Регистрация юридических лиц \"Одно окно\"",68851,null,null,68851]
["9.","Государственная информационная система \"Регистрация индивидуальных предпринимателей \"Одно окно\"",68851,null,null,68851]
["10.","Государственная информационная система \"Государственный земельный кадастр\"",371785,null,null,371785]
["11.","Государственная информационная система \"Электронные платежи\"",644821,203587,null,848408]
["12.","Информационная система \"Единый реестр объектов недвижимого имущества и земель\"",null,55000,null,55000]
["13.","Государственная информационная система \"Централизованное создание и хранение резервных копий информации органов государственной власти и организаций\"",null,93000,null,93000]
[null,"Итого",{"$f":"C9+C10+C11+C12+C13+C14+C15+C16+C17+C18+C19+C20+C21","v":3268085},{"$f":"D9+D10+D11+D12+D13+D14+D15+D16+D17+D18+D19+D20+D21","v":563145},{"$f":"E9+E10+E11+E12+E13+E14+E15+E16+E17+E18+E19+E20+E21","v":29288},3860518]
["Министерство экономического развития Приднестровской Молдавской Республики"]
["1.","Государственная информационная система \"Закупки\"",360879,null,0,{"$f":"SUM(C24:E24)","v":360879}]
["2.","Государственная информационная система \"Государственное имущество\"",232942,null,0,{"$f":"SUM(C25:E25)","v":232942}]
[null,"Итого",{"$f":"SUM(C24:C25)","v":593821},{"$f":"SUM(D24:D25)","v":0},{"$f":"SUM(E24:E25)","v":0},{"$f":"SUM(F24:F25)","v":593821}]
["Министерство юстиции Приднестровской Молдавской Республики"]
["1.","Государственная информационная система \"Юридическая литература\"",314766,0,0,{"$f":"C28+D28+E28","v":314766}]
[null,"Итого",{"$f":"SUM(C27:C28)","v":314766},{"$f":"SUM(D27:D28)","v":0},{"$f":"SUM(E27:E28)","v":0},{"$f":"SUM(F27:F28)","v":314766}]
[null,"Всего",{"$f":"C26+C22+C29","v":4176672},{"$f":"D26+D22+D29","v":563145},{"$f":"E26+E22+E29","v":29288},{"$f":"F26+F22+F29","v":4769105}]
[]
["Примечание."]
["Разрешить исполнительному органу государственной власти, ответственному за исполнение республиканского бюджета, на основании обоснованных обращений главных распределителей бюджетных средств перераспределять средства в пределах общей стоимости государственного заказа, утвержденного настоящим Приложением"]